Cogmind - Beta 10.2 @@@ ROGUE MODE // 2021.08.12 @ 21:22:52 Player: Gilgameshx13 Result: Destroyed by Y-54 Guardian with Flak Gun Performance ------------- Evolutions (3) 1500 Regions Visited (4) 800 Robots Destroyed (16) 80 Value Destroyed (427) 427 Prototype IDs (0) 0 Alien Tech Used (0) 0 Bonus (200) 200 TOTAL SCORE: 3007 Bonus ------- Pacifist 200 Cogmind --------- Core Integrity 0/700 Matter 12/300 Energy 100/100 System Corruption 4% Temperature Cool (18) Movement Core (150) Ox2 Location -7/Factory Parts ------- > --- POWER (2) -------- (None) > --- PROPULSION (4) --- (None) > --- UTILITY (5) ------ Improved Terrain Scan Processor Advanced Terrain Scan Processor Microactuators Microactuators > --- WEAPON (2) ------- Heavy Flail > --- INVENTORY (4) ---- Improved Deuterium Engine Heavy Flail Peak State ------------ > --- POWER ------------ Light Deuterium Engine Improved Deuterium Engine > --- PROPULSION ------- Airjet Gravmag System Gravmag System Gravmag System > --- UTILITY ---------- Small Storage Unit Advanced Visual Processing Unit Improved Terrain Scan Processor Advanced Terrain Scan Processor Power Shielding > --- WEAPON ----------- Gauss Cannon Heavy Missile Launcher > --- INVENTORY -------- Improved Deuterium Engine Improved Deuterium Engine Improved Hover Unit Improved Hover Unit Advanced Assault Cannon [Rating: 43] Favorites ----------- Power Light Ion Engine Engine Light Ion Engine Propulsion Airjet Leg Aluminum Leg Hover Unit Airjet Utility Small Storage Unit Device Transmission Jammer Storage Small Storage Unit Processor Advanced Visual Processing Unit Protection Power Shielding Weapon Assault Cannon Energy Gun Medium Laser Energy Cannon Ion Cannon Ballistic Gun Assault Rifle Ballistic Cannon Assault Cannon Launcher Heavy Missile Launcher Impact Weapon Heavy Flail Build | -11 -10 -9 -8 -7 ------- Run | Scr Mat Mat Mat Fac Slots Evolved 6 | . . 2 2 2 Power 1 | . . . . 1 Propulsion 2 | . . 2 . . Utility 3 | . . . 2 1 Weapon . | . . . . . Parts Attached 43 | 6 . 8 5 24 Power 5 | 1 . . 1 3 Engine 5 | 1 . . 1 3 Core . | . . . . . Reactor . | . . . . . Propulsion 16 | 2 . 4 2 8 Treads . | . . . . . Leg 2 | 2 . . . . Wheel . | . . . . . Hover 14 | . . 4 2 8 Flight . | . . . . . Utility 9 | 1 . 1 2 5 Device 4 | . . . 1 3 Storage 1 | 1 . . . . Processor 3 | . . 1 1 1 Hackware . | . . . . . Protection 1 | . . . . 1 Artifact . | . . . . . Weapon 13 | 2 . 3 . 8 Energy Gun 2 | 1 . . . 1 Energy Cannon 1 | . . . . 1 Ballistic Gun 2 | 1 . 1 . . Ballistic Cannon 5 | . . 2 . 3 Launcher 2 | . . . . 2 Special Weapon . | . . . . . Impact Weapon 1 | . . . . 1 Slashing Weapon . | . . . . . Piercing Weapon . | . . . . . Special Melee Weapon . | . . . . . Unidentified Prototypes . | . . . . . Parts Lost 23 | . . 1 . 22 Power 4 | . . . . 4 Propulsion 11 | . . 1 . 10 Utility 5 | . . . . 5 Weapon 3 | . . . . 3 Highest Loss Streak 10 | . . 1 . 10 Average Slot Usage (%) 80 | . 85 92 94 75 Engine 7 | . 14 11 9 4 Leg 3 | . 28 3 . . Hover 21 | . . 35 32 20 Device 3 | . . . 7 4 Storage 8 | . 14 11 9 6 Processor 14 | . . 9 16 18 Protection 4 | . . . . 6 Energy Gun 1 | . 14 2 . . Ballistic Gun 4 | . 14 17 . . Ballistic Cannon 8 | . . 2 18 9 Launcher 1 | . . . . 2 Naked Turns . | . . . . . Heaviest Build 34 | 11 11 17 18 34 Greatest Support 42 | 20 20 36 35 42 Greatest Overweight (x) 8 | 3 . . . 8 Average Overweight (x) . | . . . . . Largest Inventory Capacity 6 | 6 6 6 6 6 Average Capacity 5 | 5 6 6 6 5 Most Carried 6 | 4 4 6 6 6 Average Carried 4 | 1 2 5 5 5 Final Capacity 6 | 6 6 6 6 4 Final Carried 6 | 2 4 6 6 2 Class Distribution -------------------- 100% | Mutant Dominant Class ---------------- Mutant | -10/Materials Mutant | -9/Materials Mutant | -8/Materials Mutant | -7/Factory Resources | -11 -10 -9 -8 -7 ----------- Run | Scr Mat Mat Mat Fac Matter Collected 476 | 223 . 130 . 123 Remotely . | . . . . . Salvage Created 367 | . . 165 . 202 Parts 30 | . . 11 . 19 Haulers Intercepted . | . . . . . Recyclers Shooed 1 | . . . . 1 Parts Field Recycled . | . . . . . Retrieved Matter . | . . . . . Parts Self-Destructed . | . . . . . Prevented . | . . . . . Kills | -11 -10 -9 -8 -7 ------- Run | Scr Mat Mat Mat Fac Combat Hostiles Destroyed 12 | . . 3 . 9 Guns 3 | . . 3 . . Cannons 3 | . . . . 3 AOE 6 | . . . . 6 Classes Destroyed 6 | . . 4 . 2 Builder 1 | . . . . 1 Recycler 2 | . . 1 . 1 Watcher 1 | . . 1 . . Swarmer 10 | . . 2 . 8 Grunt 1 | . . 1 . . Sentry 1 | . . . . 1 Best Kill Streak 7 | . . 3 . 7 Combat Bots Only 6 | . . 2 . 6 Max Kills in Single Turn 4 | . . 1 . 4 Gunslinging . | . . . . . Exploded 4 | . . . . 4 Melee . | . . . . . Uniques/NPCs Destroyed . | . . . . . Combat | -11 -10 -9 -8 -7 -------- Run | Scr Mat Mat Mat Fac Damage Taken 2697 | . 42 306 60 2289 Core 757 | . . 42 13 702 Absorbed by Shields 9 | . . . . 9 Core Remaining (%) 96 | 100 100 89 97 . Volleys Fired 40 | . 3 9 . 28 Largest 2 | . 2 2 . 2 Hottest 88 | . 70 88 . 88 Shots Fired 62 | . 6 18 . 38 Gun 22 | . 6 16 . . Cannon 34 | . . 2 . 32 Launcher 6 | . . . . 6 Special . | . . . . . Kinetic 40 | . 3 18 . 19 Thermal 16 | . 3 . . 13 Explosive 6 | . . . . 6 Electromagnetic . | . . . . . Robot Hit Streak 7 | . 1 2 . 7 Robot Miss Streak 2 | . 2 2 . 2 Penetration Max . | . . . . . Secondary Targets . | . . . . . Shots Hit Robots 31 | . 2 7 . 22 Core Hits 30 | . . 8 . 22 Critical Hits 1 | . . 1 . . Critical Kills . | . . . . . Critical Parts Destroyed 1 | . . 1 . . Melee Attacks . | . . . . . Impact . | . . . . . Slashing . | . . . . . Piercing . | . . . . . Sneak Attacks . | . . . . . Combat Hostiles . | . . . . . Follow-up Attacks . | . . . . . Damage Inflicted 1380 | . 12 133 . 1235 Guns 124 | . 12 112 . . Cannons 501 | . . 21 . 480 Explosions 750 | . . . . 750 Melee . | . . . . . Ramming 5 | . . . . 5 Kinetic 408 | . . 133 . 275 Thermal 233 | . 12 . . 221 Explosive 673 | . . . . 673 Electromagnetic 61 | . . . . 61 Impact . | . . . . . Slashing . | . . . . . Piercing . | . . . . . Highest Corruption 4 | . 2 1 . 4 Average Corruption 1 | . 2 1 . 1 Corruption Purged . | . . . . . Overload Shots . | . . . . . Overflow Damage 36 | . . . . 36 Projectiles 4 | . . . . 4 Explosions 32 | . . . . 32 Melee . | . . . . . Knockbacks 3 | . . . . 3 Impact . | . . . . . Kinetic 3 | . . . . 3 Secondary . | . . . . . Self-Inflicted Damage 31 | . . . . 31 Shots 1 | . . . . 1 Rammed 3 | . . . . 3 Targets Rammed 3 | . . . . 3 Kicked . | . . . . . Crushed . | . . . . . Highest Temperature 202 | . 18 39 . 202 Average Temperature 77 | . 9 20 . 89 Received Heat Transfer 249 | . . 78 9 162 Siege Activations . | . . . . . Robots Corrupted . | . . . . . Combat Hostiles . | . . . . . Parts Fried . | . . . . . Impact Corruptions . | . . . . . Robots Melted . | . . . . . Combat Hostiles . | . . . . . Parts Melted . | . . . . . Heat Transferred 370 | . 37 . . 333 Parts Sabotaged . | . . . . . Parts Stolen . | . . . . . Parts Stripped . | . . . . . Power Chain Reactions 1 | . . . . 1 Missiles Intercepted . | . . . . . Alert | -11 -10 -9 -8 -7 ------- Run | Scr Mat Mat Mat Fac Peak Influence 272 | . 15 182 106 272 Initial 76 | . . 5 76 47 Average 93 | . 9 57 92 124 Maximum Alert Level 1 | . . . . 1 Low Security (%) 75 | 100 100 100 100 60 Level 1 24 | . . . . 39 Level 2 . | . . . . . Level 3 . | . . . . . Level 4 . | . . . . . Level 5 . | . . . . . High Security . | . . . . . Max Security . | . . . . . Squads Dispatched 4 | . 1 1 . 2 Investigation . | . . . . . Extermination 1 | . . . . 1 Reinforcement 3 | . 1 1 . 1 Assault . | . . . . . Garrison . | . . . . . Intercept . | . . . . . Construction Impeded . | . . . . . Haulers Reinforced . | . . . . . Stealth | -11 -10 -9 -8 -7 --------- Run | Scr Mat Mat Mat Fac Distress Signals 1 | . . 1 . . Communications Jammed . | . . . . . Distress Signals . | . . . . . Times Spotted 35 | . 2 12 2 19 Peak Tracking Total 6 | . 1 6 4 4 Tactical Retreats 3 | . . 2 . 1 Traps | -11 -10 -9 -8 -7 ------- Run | Scr Mat Mat Mat Fac Traps Triggered 7 | . 2 1 . 4 Indirectly 3 | . . . . 3 Trap Hack Attempts . | . . . . . Triggered . | . . . . . Disarmed . | . . . . . Reprogrammed . | . . . . . Reused . | . . . . . Traps Extracted . | . . . . . Installed . | . . . . . Triggered 2 | . . . . 2 Machines | -11 -10 -9 -8 -7 ---------- Run | Scr Mat Mat Mat Fac Machines Disabled 7 | . . 1 . 6 Max in Single Turn 4 | . . 1 . 4 Machines Sabotaged . | . . . . . Garrisons Compromised . | . . . . . Overloaded Fab Kills . | . . . . . Fab Network Shutdowns . | . . . . . Hacking | -11 -10 -9 -8 -7 --------- Run | Scr Mat Mat Mat Fac Machines Accessed . | . . . . . Terminals . | . . . . . Fabricators . | . . . . . Repair Stations . | . . . . . Recycling Units . | . . . . . Scanalyzers . | . . . . . Garrison Access . | . . . . . Total Hacks . | . . . . . Successful . | . . . . . Failed . | . . . . . Catastrophic . | . . . . . Database Lockouts . | . . . . . Manual . | . . . . . Terminals . | . . . . . Fabricators . | . . . . . Repair Stations . | . . . . . Recycling Units . | . . . . . Scanalyzers . | . . . . . Garrison Access . | . . . . . Terminal Hacks . | . . . . . Fabricator Hacks . | . . . . . Repair Station Hacks . | . . . . . Recycling Unit Hacks . | . . . . . Scanalyzer . | . . . . . Garrison Access Hacks . | . . . . . Unauthorized Hacks . | . . . . . Terminals . | . . . . . Fabricators . | . . . . . Repair Stations . | . . . . . Recycling Units . | . . . . . Scanalyzers . | . . . . . Garrison Access . | . . . . . Data Cores Recovered . | . . . . . Used . | . . . . . Hacking Detections . | . . . . . Full Trace Events . | . . . . . Feedback Events . | . . . . . Feedback Blocked . | . . . . . Robot Schematics Acquired . | . . . . . Robots Built . | . . . . . Matter . | . . . . . Time . | . . . . . Total Robot Build Rating . | . . . . . Part Schematics Acquired . | . . . . . Parts Built . | . . . . . Matter . | . . . . . Time . | . . . . . Total Part Build Rating . | . . . . . Parts Repaired . | . . . . . Time . | . . . . . Parts Recycled . | . . . . . Recycled Matter . | . . . . . Retrieved Matter . | . . . . . Retrieved Components . | . . . . . Parts Scanalyzed . | . . . . . Part Schematics Acquired . | . . . . . Parts Damaged . | . . . . . Bothacking | -11 -10 -9 -8 -7 ------------ Run | Scr Mat Mat Mat Fac Used RIF Installer . | . . . . . Robots Hacked . | . . . . . Non-combat . | . . . . . Combat . | . . . . . Robot Hacks Applied . | . . . . . Relay Couplers Released . | . . . . . Robots Rewired . | . . . . . Allies Hacked . | . . . . . Hacks Repelled . | . . . . . Allies | -11 -10 -9 -8 -7 -------- Run | Scr Mat Mat Mat Fac Total Allies . | . . . . . Largest Group . | . . . . . Highest-Rated Group . | . . . . . Highest-Rated Ally . | . . . . . Total Orders . | . . . . . Ally Attacks . | . . . . . Total Damage . | . . . . . Kills . | . . . . . Allies Corrupted . | . . . . . Allies Melted . | . . . . . Intel | -11 -10 -9 -8 -7 ------- Run | Scr Mat Mat Mat Fac Robot Analysis Total . | . . . . . Derelict Logs Recovered . | . . . . . Drone Launches . | . . . . . Drone Recoveries . | . . . . . Exploration | -11 -10 -9 -8 -7 ------------- Run | Scr Mat Mat Mat Fac Turns Passed 1445 | 80 151 225 73 916 Spaces Moved 1332 | 57 117 303 110 745 Core 82 | 33 . . . 49 Treads . | . . . . . Legs 165 | 24 117 24 . . Wheels . | . . . . . Hover 1085 | . . 279 110 696 Flight . | . . . . . Fastest Speed 48 | 50 120 48 48 48 Average Speed 90 | 116 120 56 53 102 Slowest Speed 450 | 200 120 120 56 450 Overloaded Moves . | . . . . . Propulsion Burnouts . | . . . . . Robots Hopped . | . . . . . Cave-ins Triggered . | . . . . . Exploration Rate (%) 19 | 4 32 30 18 14 Regions Visited 4 Branch Regions . Pre-discovered Areas . | . . . . . Known Exits Taken . | . . . . . Unknown Exits Taken 4 | 1 1 1 1 . Scrap Searched . | . . . . . Spaces Dug . | . . . . . Terrain Destroyed 28 | . . . . 28 Melee . | . . . . . Projectile . | . . . . . AOE 28 | . . . . 28 Terrain Rammed . | . . . . . Walls Destroyed . | . . . . . Machines Disabled . | . . . . . Actions | -11 -10 -9 -8 -7 --------- Run | Scr Mat Mat Mat Fac Total 1510 | 70 121 339 123 857 Wait 6 | . . 1 . 5 Move 1328 | 56 116 302 109 745 Hop . | . . . . . Pick Up 55 | 8 2 12 6 27 Fast Attach . | . . . . . Attach 32 | 6 . 5 3 18 Detach . | . . . . . Swap 11 | . . 3 2 6 Drop 24 | . . 7 3 14 Fire 40 | . 3 9 . 28 Melee . | . . . . . Ram 3 | . . . . 3 Kick . | . . . . . Crush . | . . . . . Escape Stasis 11 | . . . . 11 Rewire . | . . . . . Trap . | . . . . . Miscellaneous . | . . . . . Route ------- -11/Scrapyard -10/Materials -9/Materials -8/Materials -7/Factory History --------- Turn | Location | Event 24 | -11/Scrapyard | Discovered new exit (range 16) 81 | -11/Scrapyard | Entered Materials 198 | -10/Materials | Discovered new exit (range 11) 232 | -10/Materials | Entered another Materials area 232 | -9/Materials | Evolved 2 slots: Propulsion x2 313 | -9/Materials | Build established: Mutant 451 | -9/Materials | Discovered new exit (range 9) 457 | -9/Materials | Entered another Materials area 457 | -8/Materials | Evolved 2 slots: Utility x2 527 | -8/Materials | Discovered new exit (range 3) 530 | -8/Materials | Entered Factory 530 | -7/Factory | Evolved 2 slots: Power x1, Utility x1 626 | -7/Factory | Lost 4 parts (1p3n) 1372 | -7/Factory | Core integrity fell below 50% 1391 | -7/Factory | Lost 10 parts (1p5n1u3w) 1438 | -7/Factory | Core integrity fell below 20% 1446 | -7/Factory | Destroyed by Y-54 Guardian with Flak Gun Last Messages --------------- K-01 Serf collects debris. Adv. Assault Cannon severed. K-01 Serf collects debris. K-01 Serf cleans the Construction Platform. Imp. Deuterium Engine destroyed. Adv. Visual Processing Unit destroyed. ALERT: Rogue bot located, Programmers report to Factory Zone 1W. K-01 Serf cleans the Construction Platform. Acquired 16 matter. Slammed into L-41 Fighter. Destabilizing: System corrupted (+1). Slammed into K-01 Serf. Slammed into R-06 Scavenger. Lgt. Deuterium Engine destroyed. Acquired Hvy. Flail. Sml. Storage Unit destroyed. Power Shielding destroyed. Acquired Microactuators. Imp. Deuterium Engine destroyed. Coolant Injector destroyed. Map ----- +----------------------------------------------------+ | ?????????????????????????????????????????????????? | | ?????????????????????????????????????????????????? | | ?????????????????????????????????????????????????? | | ?????????????????????????????????????????????????? | | ?????????????????????????????????????????????????? | | ?????????????????????????????????????????????????? | | ?????????????????????????????????????????????????? | | ?????????????????????????????????????????????????? | | ?????????????????????????????????????????????????? | | ?????????????????????????????????????????????????? | | ?????????????????????????????????????????????????? | | ?????????????????????????????????????????????????? | | ?????????????????????????????????????????????????? | | ?????????????????????????????????????????????????? | | ??????????????????????????????##+##??????????????? | | ????????????????????##????????# #??????????????? | | ????????????????????# ######### #??????????????? | | ????????????????????# [ [ + #???+#?????????? | | ????????????????????# " p# #??? #?????#???? | | ????????????????????# ""Y # #??? #???? #???? | | ????????????????????# G !!! # #### ##### #???? | | ????????????????????# "" ! # #???? | | ????????????????????# " ! s #???? | | ????????????????????# [ # #???? | | ????????????????????# ! # #???? | | ????????????????????#####@##### #???? | | ???????????????????? #???? | | ??????????????????????###+##### #???? | | ??????????????????????????????# #???? | | ??????????????????????????????########/### | | ??????????????????????????????????# #? | | ??????????????????????????????????# """#?? | | ??????????????????????????????????# """#???? ? | | ??????????????????????????????????# """#???????? | | ??????????????????????????????????# #???????? | | ??????????????????????????????????# !#??????? | | ???????????????????##############?#/######?????? | | ???????????????????# #?# #?????????? | | ???????????????????# #?# #???????? | | ???????????????????# """" """" #?# #??????? ? | | ???????????????????# """" """" ### ###???? #?? | | ???????????????????# """" """" # #### #?? | | ???????????????????# """" """" # " ### | | ???????????????????# """ """" + "T | | ???????????????????# """" """" # ###? | | ???????????????????# """" """" # ##+######??? | | ???????????????????# ## ###?? ??????? | | ???????????????????# ## #?# ? ??????? | | ???????????????????# ] ## #?# ??????? | | ???????????????????############### #?# ??????? | +----------------------------------------------------+ Best States ------------- Heat Dissipation 34 Coolant Potential 65 Energy Generation 25 Energy Capacity 330 Matter Stores 300 Matter Capacity 300 Sight Range 20 Terrain Scan Density 310 Jamming Range 8 Power Shielding 33 Melee Speed Boost 20 Evasion (%) 55 Item Schematics ----------------- None Robot Schematics ------------------ None Fabricated ------------ Nothing Alien Tech Used ----------------- None Achievements -------------- None Challenges ------------ None Game ------ Seed FireLargeChronowheel Manual? 0 Play Time 00:22:43 Cumulative 14.6 hours Start 2021.08.12 @ 21:02:21 End 2021.08.12 @ 21:22:52 Sessions 1 Manual Loads 0 Difficulty Rogue Special Mode None Game No. 32 Rogue 12 Adventurer 20 Explorer 0 Win Type - Total 1 Types 1/0/0/0/0/0/0/0/0 Lore% 14 Gallery% 38 Achievement% 26 Wizard Run 0 Options --------- ASCII 0 Keyboard 0 Movement Arrows Keybinds 0 Fullscreen 1 Font 18/SmallcapsGlow Map View 76x50 Tactical HUD 0 Map Filters NONE Filters NONE Steam 1 RUN: eb57c093-1b53-4b3e-a176-41563bb8cba3